fUSD/lending_fUSD_20250225
["ID","MTS","AMOUNT","RATE_DAILY","PERIOD"]
[354387107,1740468737521,-509.46074936,0.00056438,120]
[354387108,1740468737531,-500.0,0.00056438,120]
[354387109,1740468737541,-500.0,0.00056438,120]
[354387110,1740468737553,-500.0,0.00056438,120]
[354387111,1740468737564,-1220.8,0.00056438,120]
[354387112,1740468737578,-500.0,0.00056438,120]
[354387113,1740468737588,-500.0,0.00056438,120]
[354387114,1740468737599,-500.0,0.00056438,120]
[354387115,1740468737610,-500.0,0.00056438,120]
[354387116,1740468737621,-500.0,0.00056438,120]
[354387117,1740468737631,-500.0,0.00056438,120]
[354387118,1740468737641,-500.0,0.00056438,120]
[354387119,1740468737652,-500.0,0.00056438,2]
[354387120,1740468737662,-500.0,0.00056438,120]
[354387121,1740468737671,-522.31,0.00056438,120]
[354387122,1740468737682,-336.01566578,0.00056438,120]
[354387123,1740468737692,-1188.98,0.00056438,120]
[354387124,1740468737704,-526.28,0.00056438,120]
[354387125,1740468737713,-1040.34,0.00056438,120]
[354387126,1740468737723,-724.24,0.00056438,120]
[354387127,1740468737732,-500.0,0.00056438,120]
[354387128,1740468737743,-555.54144983,0.00056438,120]
[354387129,1740468737752,-500.0,0.00056438,120]
[354387130,1740468737762,-500.0,0.00056438,120]
[354387131,1740468737772,-1422.51,0.00056438,120]
[354387132,1740468737782,-500.0,0.00056438,120]
[354387133,1740468737882,-500.0,0.00056438,120]
[354387134,1740468737893,-1615.65,0.00056438,120]
[354387135,1740468737904,-992.42,0.00056438,20]
[354387136,1740468737914,-510.92803084,0.00056438,120]
[354387137,1740468737924,-901.44,0.00056438,120]
[354387138,1740468737934,-500.0,0.00056438,120]
[354387139,1740468737944,-816.88,0.00056438,120]
[354387140,1740468737954,-500.0,0.00056438,120]
[354387141,1740468737964,-500.0,0.00056438,120]
[354387142,1740468737974,-955.28,0.00056438,120]
[354387143,1740468737984,-500.0,0.00056438,120]
[354387144,1740468737994,-671.92,0.00056438,120]
[354387145,1740468738003,-500.0,0.00056438,120]
[354387146,1740468738013,-1525.72,0.00056438,120]
[354387147,1740468738023,-500.0,0.00056438,40]
[354387148,1740468738033,-500.0,0.00056438,120]
[354387149,1740468738043,-1437.76,0.00056438,120]
[354387150,1740468738053,-598.42040253,0.00056438,120]
[354387151,1740468738064,-500.0,0.00056438,120]
[354387152,1740468738076,-1132.0,0.00056438,120]
[354387153,1740468738091,-500.0,0.00056438,120]
[354387154,1740468738102,-1768.38,0.00056438,120]
[354387155,1740468738113,-872.14,0.00056438,120]
[354387156,1740468738124,-1405.94,0.00056438,120]
[354387157,1740468738135,-500.0,0.00056438,120]
[354387158,1740468738145,-500.0,0.00056438,120]
[354387159,1740468738156,-500.0,0.00056438,120]
[354387160,1740468738166,-745.77,0.00056438,120]
[354387161,1740468738177,-1000.0,0.00056438,120]
[354387162,1740468738187,-500.0,0.00056438,120]
[354387163,1740468738197,-820.25,0.00056438,120]
[354387164,1740468738206,-778.18,0.00056438,120]
[354387165,1740468738216,-500.0,0.00056438,120]
[354387166,1740468738226,-500.0,0.00056438,120]
[354387167,1740468738238,-493.82213977,0.00056438,120]
[354387168,1740468738249,-618.03,0.00056438,120]
[354387169,1740468738260,-538.57,0.00056438,120]
[354387170,1740468738271,-813.45,0.00056438,120]
[354387171,1740468738281,-659.87,0.00056438,120]
[354387172,1740468738292,-542.24,0.00056438,120]
[354387173,1740468738302,-1379.17,0.00056438,120]
[354387174,1740468738313,-524.7052625,0.00056438,120]
[354387175,1740468738327,-500.0,0.00056438,120]
[354387176,1740468738338,-1790.29,0.00056438,120]
[354387177,1740468738349,-500.0,0.00056438,120]
[354387178,1740468738359,-513.11290915,0.00056438,120]
[354387179,1740468738370,-521.56941954,0.00056438,120]
[354387180,1740468738381,-817.76,0.00056438,120]
[354387181,1740468738391,-500.0,0.00056438,120]
[354387182,1740468738401,-1159.57,0.00056438,120]
[354387183,1740468738411,-500.0,0.00056438,120]
[354387184,1740468738422,-500.0,0.00056438,120]
[354387185,1740468738432,-500.0,0.00056438,120]
[354387186,1740468738443,-500.0,0.00056438,120]
[354387187,1740468738453,-672.91,0.00056438,120]
[354387188,1740468738464,-1035.42,0.00056438,120]
[354387189,1740468738475,-1067.5,0.00056438,120]
[354387190,1740468738485,-500.0,0.00056438,120]
[354387191,1740468738495,-911.5,0.00056438,120]
[354387192,1740468738505,-782.71,0.00056438,120]
[354387193,1740468738514,-500.0,0.00056438,120]
[354387194,1740468738524,-500.0,0.00056438,120]
[354387195,1740468738534,-692.81,0.00056438,120]
[354387196,1740468738544,-500.0,0.00056438,120]
[354387197,1740468738555,-1417.28,0.00056438,120]
[354387198,1740468738568,-4827.95,0.00056438,120]
[354387199,1740468738579,-535.10532823,0.00056438,120]
[354387200,1740468738589,-907.1,0.00056438,120]
[354387201,1740468738600,-1025.54,0.00056438,120]
[354387202,1740468738611,-153.79964951,0.00056438,120]
[354387203,1740468738621,-972.52,0.00056438,120]
[354387204,1740468738632,-500.0,0.00056438,120]
[354387205,1740468738642,-1147.6,0.00056438,120]
[354387206,1740468738653,-954.71,0.00056438,120]
[354387207,1740468738663,-927.58,0.00056438,120]
[354387208,1740468738674,-508.53,0.00056438,120]
[354387209,1740468738684,-500.0,0.00056438,120]
[354387210,1740468738694,-500.0,0.00056438,120]
[354387211,1740468738705,-1526.64,0.00056438,120]
[354387212,1740468738714,-500.0,0.00056438,120]
[354387213,1740468738725,-500.0,0.00056438,120]
[354387214,1740468738736,-1242.39,0.00056438,120]
[354387215,1740468738746,-871.61,0.00056438,120]
[354387216,1740468738757,-549.43,0.00056438,120]
[354387217,1740468738768,-1600.52,0.00056438,120]
[354387218,1740468738778,-506.74247757,0.00056438,120]
[354387219,1740468738788,-1142.54,0.00056438,120]
[354387220,1740468738797,-500.0,0.00056438,120]
[354387221,1740468738808,-552.98,0.00056438,120]
[354387222,1740468738821,-1401.97,0.00056438,120]
[354387223,1740468738832,-1245.93,0.00056438,120]
[354387224,1740468738842,-500.0,0.00056438,120]
[354387225,1740468738852,-1200.36,0.00056438,120]
[354387226,1740468738863,-500.0,0.00056438,120]
[354387227,1740468738875,-500.0,0.00056438,30]
[354387228,1740468738887,-504.05,0.00056438,120]
[354387229,1740468738898,-971.46,0.00056438,120]
[354387230,1740468738908,-500.0,0.00056438,120]
[354387231,1740468738919,-500.0,0.00056438,120]
[354387232,1740468738929,-500.0,0.00056438,120]
[354387233,1740468738940,-500.0,0.00056438,120]
[354387234,1740468738950,-500.0,0.00056438,120]
[354387235,1740468738961,-599.74,0.00056438,120]
[354387236,1740468738972,-500.0,0.00056438,120]
[354387237,1740468738983,-515.75,0.00056438,120]
[354387238,1740468738993,-1301.53,0.00056438,120]
[354387239,1740468739004,-510.7520585,0.00056438,120]
[354387240,1740468739014,-500.0,0.00056438,120]
[354387241,1740468739025,-500.0,0.00056438,120]
[354387242,1740468739035,-500.0,0.00056438,120]
[354387243,1740468739045,-1377.93,0.00056438,120]
[354387244,1740468739055,-519.39,0.00056438,120]
[354387245,1740468739068,-623.61,0.00056438,120]
[354387246,1740468739082,-500.0,0.00056438,120]
[354387247,1740468739096,-1303.38,0.00056438,120]
[354387248,1740468739106,-500.0,0.00056438,120]
[354387249,1740468739116,-503.72841281,0.00056438,120]
[354387250,1740468739127,-500.0,0.00056438,120]
[354387251,1740468739138,-500.0,0.00056438,120]
[354387252,1740468739150,-585.47,0.00056438,120]
[354387253,1740468739161,-552.97,0.00056438,120]
[354387254,1740468739172,-1349.4,0.00056438,120]
[354387255,1740468739184,-500.0,0.00056438,120]
[354387256,1740468739194,-741.84,0.00056438,120]
[354387257,1740468739205,-500.0,0.00056438,120]
[354387258,1740468739216,-700.58,0.00056438,2]
[354387259,1740468739228,-2351.09,0.00056438,2]
[354387260,1740468739239,-500.0,0.00056438,120]
[354387261,1740468739250,-994.98,0.00056438,30]
[354387262,1740468739261,-500.0,0.00056438,120]
[354387263,1740468739272,-375.29760153,0.00056438,120]
[354387264,1740468739283,-500.0,0.00056438,120]
[354387265,1740468739293,-500.0,0.00056438,120]
[354387266,1740468739304,-715.33,0.00056438,120]
[354387267,1740468739314,-1439.89,0.00056438,120]
[354387268,1740468739328,-500.0,0.00056438,120]
[354387269,1740468739338,-943.25,0.00056438,120]
[354387270,1740468739349,-657.52,0.00056438,120]
[354387271,1740468739360,-500.0,0.00056438,120]
[354387272,1740468739370,-500.0,0.00056438,120]
[354387273,1740468739381,-523.79,0.00056438,120]
[354387274,1740468739392,-500.0,0.00056438,120]
[354387275,1740468739403,-1664.27,0.00056438,120]
[354387276,1740468739414,-943.64,0.00056438,120]
[354387277,1740468739425,-516.4,0.00056438,120]
[354387278,1740468739436,-712.11,0.00056438,120]
[354387279,1740468739448,-500.0,0.00056438,120]
[354387280,1740468739459,-500.0,0.00056438,120]
[354387281,1740468739468,-500.0,0.00056438,120]
[354387282,1740468739479,-888.35,0.00056438,120]
[354387283,1740468739489,-500.0,0.00056438,120]
[354387284,1740468739500,-500.0,0.00056438,120]
[354387285,1740468739511,-522.22,0.00056438,120]
[354387286,1740468739521,-1032.87,0.00056438,120]
[354387287,1740468739532,-500.0,0.00056438,120]
[354387288,1740468739543,-500.0,0.00056438,120]
[354387289,1740468739553,-1438.9,0.00056438,120]
[354387290,1740468739564,-516.24217461,0.00056438,120]
[354387291,1740468739578,-570.8,0.00056438,120]
[354387292,1740468739589,-815.66,0.00056438,120]
[354387293,1740468739600,-500.0,0.00056438,120]
[354387294,1740468739611,-500.0,0.00056438,120]
[354387295,1740468739623,-1275.45,0.00056438,120]
[354387296,1740468739634,-3980.64,0.00056438,120]
[354387297,1740468739645,-500.0,0.00056438,120]
[354387298,1740468739657,-500.0,0.00056438,120]
[354387299,1740468739668,-500.0,0.00056438,120]
[354387300,1740468739679,-1206.75,0.00056438,120]
[354387301,1740468739691,-500.0,0.00056438,120]
[354387302,1740468739702,-1130.49,0.00056438,120]
[354387303,1740468739712,-1535.83,0.00056438,120]
[354387304,1740468739722,-1768.01,0.00056438,120]
[354387305,1740468739733,-1200.87,0.00056438,120]
[354387306,1740468739744,-500.0,0.00056438,120]
[354387307,1740468739755,-664.86,0.00056438,120]
[354387308,1740468739766,-696.61,0.00056438,120]
[354387309,1740468739776,-1522.97,0.00056438,120]
[354387310,1740468739787,-500.0,0.00056438,120]
[354387311,1740468739798,-500.0,0.00056438,120]
[354387312,1740468739809,-500.0,0.00056438,120]
[354387313,1740468739823,-1393.05,0.00056438,120]
[354387314,1740468739833,-894.01,0.00056438,120]
[354387315,1740468739843,-986.38,0.00056438,120]
[354387316,1740468739853,-1886.6,0.00056438,120]
[354387317,1740468739864,-1184.76,0.00056438,120]
[354387318,1740468739874,-500.0,0.00056438,120]
[354387319,1740468739885,-1319.72,0.00056438,120]
[354387320,1740468739895,-2022.2,0.00056438,120]
[354387321,1740468739906,-1099.29,0.00056438,120]
[354387322,1740468739917,-1444.43,0.00056438,120]
[354387323,1740468739928,-500.0,0.00056438,120]
[354387324,1740468739938,-512.51,0.00056438,120]
[354387325,1740468739948,-517.98,0.00056438,120]
[354387326,1740468739959,-500.0,0.00056438,120]
[354387327,1740468739970,-1030.18,0.00056438,120]
[354387328,1740468739981,-971.18,0.00056438,120]
[354387329,1740468739993,-1142.3,0.00056438,120]
[354387330,1740468740004,-1194.04,0.00056438,120]
[354387331,1740468740014,-635.04946583,0.00056438,120]
[354387332,1740468740025,-500.0,0.00056438,120]
[354387333,1740468740037,-1748.82,0.00056438,120]
[354387334,1740468740048,-679.54,0.00056438,120]
[354387335,1740468740060,-1309.17,0.00056438,120]
[354387336,1740468740076,-500.0,0.00056438,120]
[354387337,1740468740091,-587.74,0.00056438,120]
[354387338,1740468740103,-778.7,0.00056438,120]
[354387339,1740468740114,-733.26,0.00056438,120]
[354387340,1740468740125,-730.67,0.00056438,120]
[354387341,1740468740137,-598.78,0.00056438,120]
[354387342,1740468740147,-1016.76,0.00056438,120]
[354387343,1740468740158,-343.780273,0.00056438,120]
[354387344,1740468740169,-789.0,0.00056438,120]
[354387345,1740468740179,-500.0,0.00056438,120]
[354387346,1740468740189,-513.69546211,0.00056438,120]
[354387347,1740468740199,-500.0,0.00056438,120]
[354387348,1740468740210,-1145.46,0.00056438,120]
[354387349,1740468740220,-170.15486718,0.00056438,120]
[354387350,1740468740231,-4362.55,0.00056438,120]
[354387351,1740468740242,-500.0,0.00056438,120]
[354387352,1740468740253,-631.53,0.00056438,120]
[354387353,1740468740263,-500.0,0.00056438,120]
[354387354,1740468740273,-3017.39,0.00056438,120]
[354387355,1740468740283,-500.0,0.00056438,120]
[354387356,1740468740293,-969.91,0.00056438,120]
[354387357,1740468740304,-759.14,0.00056438,120]
[354387358,1740468740318,-500.0,0.00056438,120]
[354387359,1740468740329,-2220.86,0.00056438,120]
[354387360,1740468740340,-318.751745,0.00056438,120]
[354387361,1740468740350,-1553.03,0.00056438,120]
[354387362,1740468740363,-722.9,0.00056438,120]
[354387363,1740468740374,-500.0,0.00056438,120]
[354387364,1740468740385,-856.37,0.00056438,120]
[354387365,1740468740395,-910.26,0.00056438,120]
[354387366,1740468740407,-500.0,0.00056438,120]
[354387367,1740468740418,-887.73,0.00056438,120]
[354387368,1740468740428,-1830.19,0.00056438,120]
[354387369,1740468740438,-500.0,0.00056438,120]
[354387370,1740468740449,-500.0,0.00056438,120]
[354387371,1740468740459,-1715.31,0.00056438,120]
[354387372,1740468740469,-500.0,0.00056438,120]
[354387373,1740468740479,-500.0,0.00056438,120]
[354387374,1740468740489,-686.54,0.00056438,120]
[354387375,1740468740500,-500.0,0.00056438,120]
[354387376,1740468740511,-2424.1,0.00056438,120]
[354387377,1740468740521,-500.0,0.00056438,120]
[354387378,1740468740531,-500.0,0.00056438,120]
[354387379,1740468740540,-1521.55,0.00056438,120]
[354387380,1740468740549,-2919.48,0.00056438,120]
[354387381,1740468740559,-823.47,0.00056438,120]
[354387382,1740468740572,-1738.48,0.00056438,120]
[354387383,1740468740582,-915.34,0.00056438,120]
[354387384,1740468740591,-2711.99,0.00056438,120]
[354387385,1740468740600,-500.0,0.00056438,120]
[354387386,1740468740610,-576.99,0.00056438,120]
[354387387,1740468740619,-500.0,0.00056438,120]
[354387388,1740468740630,-2110.84,0.00056438,120]
[354387389,1740468740640,-637.74,0.00056438,120]
[354387390,1740468740650,-2315.41,0.00056438,120]
[354387391,1740468740659,-3875.43,0.00056438,7]
[354387392,1740468740670,-500.0,0.00056438,120]
[354387393,1740468740680,-1035.71,0.00056438,120]
[354387394,1740468740691,-500.0,0.00056438,120]
[354387395,1740468740702,-500.0,0.00056438,60]
[354387396,1740468740713,-750.25,0.00056438,120]
[354387397,1740468740723,-500.0,0.00056438,120]
[354387398,1740468740734,-500.0,0.00056438,120]
[354387399,1740468740745,-3264.88,0.00056438,120]
[354387400,1740468740755,-425.03521311,0.00056438,120]
[354387401,1740468740766,-2938.93,0.00056438,120]
[354387402,1740468740777,-500.0,0.00056438,120]
[354387403,1740468740788,-1210.86,0.00056438,120]
[354387404,1740468740799,-534.95,0.00056438,120]
[354387405,1740468740809,-703.65,0.00056438,120]
[354387406,1740468740823,-2458.44,0.00056438,120]
[354387407,1740468740833,-1556.62,0.00056438,120]
[354387408,1740468740844,-500.0,0.00056438,120]
[354387409,1740468740854,-2761.69,0.00056438,120]
[354387410,1740468740865,-585.51,0.00056438,120]
[354387411,1740468740876,-2649.21,0.00056438,120]
[354387412,1740468740888,-1493.71,0.00056438,120]
[354387413,1740468740898,-1981.89,0.00056438,120]
[354387414,1740468740910,-689.83,0.00056438,120]
[354387415,1740468740920,-2553.02,0.00056438,120]
[354387416,1740468740931,-3211.4,0.00056438,120]
[354387417,1740468740942,-1352.07,0.00056438,120]
[354387418,1740468740952,-2909.1,0.00056438,120]
[354387419,1740468740962,-1667.75,0.00056438,120]
[354387420,1740468740971,-4349.64,0.00056438,120]
[354387421,1740468740981,-1519.71,0.00056438,120]
[354387422,1740468740991,-752.34,0.00056438,120]
[354387423,1740468741002,-864.91,0.00056438,120]
[354387424,1740468741013,-1290.66,0.00056438,120]
[354387425,1740468741023,-500.0,0.00056438,120]
[354387426,1740468741034,-910.81,0.00056438,5]
[354387427,1740468741044,-2901.27,0.00056438,120]
[354387428,1740468741054,-1857.67,0.00056438,120]
[354387429,1740468741067,-500.0,0.00056438,120]
[354387430,1740468741078,-2986.93,0.00056438,120]
[354387431,1740468741093,-2864.49,0.00056438,120]
[354387432,1740468741102,-244.64876137,0.00056438,120]
[354387433,1740468741113,-500.0,0.00056438,120]
[354387434,1740468741124,-2305.88,0.00056438,120]
[354387435,1740468741134,-2121.17,0.00056438,120]
[354387436,1740468741144,-500.0,0.00056438,120]
[354387437,1740468741153,-511.98340147,0.00056438,120]
[354387438,1740468741165,-2477.45,0.00056438,120]
[354387439,1740468741175,-1752.42,0.00056438,120]
[354387440,1740468741184,-538.64,0.00056438,120]
[354387441,1740468741195,-1452.1,0.00056438,120]
[354387442,1740468741204,-1822.96,0.00056438,120]
[354387443,1740468741215,-1851.24,0.00056438,120]
[354387444,1740468741225,-500.0,0.00056438,120]
[354387445,1740468741236,-607.87,0.00056438,120]
[354387446,1740468741246,-500.0,0.00056438,120]
[354387447,1740468741256,-2265.65,0.00056438,120]
[354387448,1740468741265,-3192.11,0.00056438,120]
[354387449,1740468741275,-3707.86,0.00056438,120]
[354387450,1740468741286,-1530.35,0.00056438,120]
[354387451,1740468741297,-1400.72,0.00056438,120]
[354387452,1740468741309,-1470.7,0.00056438,120]
[354387453,1740468741321,-813.46,0.00056438,120]
[354387454,1740468741332,-1028.29,0.00056438,120]
[354387455,1740468741342,-640.5,0.00056438,120]
[354387456,1740468741352,-500.0,0.00056438,120]
[354387457,1740468741362,-2337.12,0.00056438,120]
[354387458,1740468741372,-3975.46,0.00056438,120]
[354387459,1740468741382,-3333.6,0.00056438,120]
[354387460,1740468741393,-528.42402797,0.00056438,120]
[354387461,1740468741403,-5873.49,0.00056438,120]
[354387462,1740468741413,-1036.75,0.00056438,120]
[354387463,1740468741423,-500.0,0.00056438,120]
[354387464,1740468741434,-613.18,0.00056438,120]
[354387465,1740468741445,-562.09,0.00056438,120]
[354387466,1740468741455,-2745.61,0.00056438,120]
[354387467,1740468741467,-707.46,0.00056438,120]
[354387468,1740468741478,-4540.04,0.00056438,120]
[354387469,1740468741489,-500.0,0.00056438,120]
[354387470,1740468741500,-1113.18,0.00056438,120]
[354387471,1740468741510,-2703.16,0.00056438,120]
[354387472,1740468741521,-3052.04,0.00056438,120]
[354387473,1740468741531,-522.41,0.00056438,120]
[354387474,1740468741542,-500.0,0.00056438,120]
[354387475,1740468741552,-551.64,0.00056438,120]
[354387476,1740468741563,-500.0,0.00056438,120]
[354387477,1740468741576,-1552.51,0.00056438,120]
[354387478,1740468741587,-1000.0,0.00056438,60]
[354387479,1740468741597,-2971.45,0.00056438,90]
[354387480,1740468741608,-1701.44,0.00056438,120]
[354387481,1740468741618,-553.8,0.00056438,120]
[354387482,1740468741629,-2581.17,0.00056438,120]
[354387483,1740468741639,-1833.0,0.00056438,120]
[354387484,1740468741651,-500.0,0.00056438,120]
[354387485,1740468741661,-3435.08,0.00056438,120]
[354387486,1740468741671,-500.0,0.00056438,120]
[354387487,1740468741681,-500.0,0.00056438,120]
[354387488,1740468741691,-522.17,0.00056438,120]
[354387489,1740468741702,-500.0,0.00056438,120]
[354387490,1740468741712,-857.98,0.00056438,120]
[354387491,1740468741724,-3140.0,0.00056438,120]
[354387492,1740468741734,-3227.53,0.00056438,120]
[354387493,1740468741744,-500.0,0.00056438,120]
[354387494,1740468741754,-503.24655782,0.00056438,120]
[354387495,1740468741765,-500.0,0.00056438,120]
[354387496,1740468741775,-500.0,0.00056438,120]
[354387497,1740468741786,-775.19,0.00056438,120]
[354387498,1740468741796,-872.89,0.00056438,120]
[354387499,1740468741807,-500.0,0.00056438,120]
[354387500,1740468741820,-2538.08,0.00056438,120]
[354387501,1740468741830,-408.68037868,0.00056438,120]
[354387502,1740468741840,-2940.18,0.00056438,120]
[354387503,1740468741850,-3583.88,0.00056438,120]
[354387504,1740468741860,-2559.65,0.00056438,120]
[354387505,1740468741870,-500.0,0.00056438,120]
[354387506,1740468741880,-1118.81,0.00056438,120]
[354387507,1740468741890,-688.16,0.00056438,120]
[354387508,1740468741901,-500.0,0.00056438,120]
[354387509,1740468741911,-3329.23,0.00056438,120]
[354387510,1740468741921,-1907.44,0.00056438,120]
[354387511,1740468741932,-3487.12,0.00056438,120]
[354387512,1740468741942,-568.38,0.00056438,120]
[354387513,1740468741952,-2138.38,0.00056438,120]
[354387514,1740468741963,-1469.89,0.00056438,120]
[354387515,1740468741974,-880.12,0.00056438,120]
[354387516,1740468741983,-500.0,0.00056438,120]
[354387517,1740468741993,-1941.03,0.00056438,120]
[354387518,1740468742003,-998.34,0.00056438,120]
[354387519,1740468742012,-1969.46,0.00056438,120]
[354387520,1740468742022,-3496.1,0.00056438,120]
[354387521,1740468742032,-500.0,0.00056438,120]
[354387522,1740468742042,-2020.04,0.00056438,120]
[354387523,1740468742052,-1704.77,0.00056438,120]
[354387524,1740468742061,-500.0,0.00056438,120]
[354387525,1740468742074,-3000.0,0.00056438,120]
[354387526,1740468742089,-1814.1,0.00056438,120]
[354387527,1740468742099,-3162.2,0.00056438,120]
[354387528,1740468742110,-561.29,0.00056438,120]
[354387529,1740468742120,-558.43,0.00056438,120]
[354387530,1740468742132,-500.0,0.00056438,2]
[354387531,1740468742144,-4214.34,0.00056438,120]
[354387532,1740468742157,-500.0,0.00056438,120]
[354387533,1740468742168,-1793.36,0.00056438,120]
[354387534,1740468742179,-1107.87,0.00056438,120]
[354387535,1740468742190,-1453.67,0.00056438,30]
[354387536,1740468742201,-1291.79,0.00056438,120]
[354387537,1740468742211,-2203.33,0.00056438,120]
[354387538,1740468742222,-500.0,0.00056438,120]
[354387539,1740468742233,-2186.37,0.00056438,120]
[354387540,1740468742244,-2099.71,0.00056438,120]
[354387541,1740468742255,-1541.65,0.00056438,120]
[354387542,1740468742266,-500.0,0.00056438,120]
[354387543,1740468742276,-500.0,0.00056438,2]
[354387544,1740468742287,-500.0,0.00056438,120]
[354387545,1740468742297,-500.0,0.00056438,120]
[354387546,1740468742307,-2864.64,0.00056438,120]
[354387547,1740468742320,-500.0,0.00056438,120]
[354387548,1740468742329,-500.0,0.00056438,120]
[354387549,1740468742340,-1803.36,0.00056438,120]
[354387550,1740468742350,-500.0,0.00056438,120]
[354387551,1740468742360,-1506.59,0.00056438,120]
[354387552,1740468742370,-1568.57,0.00056438,120]
[354387553,1740468742380,-980.59,0.00056438,120]
[354387554,1740468742391,-1792.49,0.00056438,120]
[354387555,1740468742402,-1620.72,0.00056438,120]
[354387556,1740468742412,-500.0,0.00056438,120]
[354387557,1740468742422,-500.0,0.00056438,120]
[354387558,1740468742432,-849.91,0.00056438,120]
[354387559,1740468742442,-659.49,0.00056438,120]
[354387560,1740468742452,-500.0,0.00056438,120]
[354387561,1740468742463,-3340.49,0.00056438,120]
[354387562,1740468742473,-150.979023,0.00056438,120]
[354387563,1740468742484,-668.51,0.00056438,120]
[354387564,1740468742494,-500.0,0.00056438,120]
[354387565,1740468742504,-680.52,0.00056438,120]
[354387566,1740468742514,-500.0,0.00056438,120]
[354387567,1740468742524,-1680.11,0.00056438,120]
[354387568,1740468742535,-500.0,0.00056438,120]
[354387569,1740468742545,-500.0,0.00056438,120]
[354387570,1740468742555,-2006.24,0.00056438,120]
[354387571,1740468742567,-2470.99,0.00056438,120]
[354387572,1740468742578,-1713.5,0.00056438,120]
[354387573,1740468742587,-151.0,0.00056438,120]
[354387574,1740468742598,-563.24,0.00056712,120]
[354387575,1740468742608,-580.45,0.00056712,120]
[354387576,1740468742619,-167.182594,0.00056712,120]
[354387577,1740468742629,-406.014874,0.00056712,120]
[354387578,1740468742639,-554.357489,0.00056712,120]
[354387579,1740468742649,-500.0,0.00056712,120]
[354387580,1740468742659,-500.0,0.00056712,120]
[354387581,1740468742669,-500.0,0.00056712,120]
[354387582,1740468742679,-500.0,0.00056712,120]
[354387583,1740468742689,-500.0,0.00056712,120]
[354387584,1740468742699,-521.68,0.00056712,120]
[354387585,1740468742709,-500.0,0.00056712,120]
[354387586,1740468742719,-500.0,0.00056712,120]
[354387587,1740468742729,-699.56,0.00056712,120]
[354387588,1740468742739,-500.0,0.00056712,120]
[354387589,1740468742750,-500.0,0.00056712,120]
[354387590,1740468742760,-500.0,0.00056712,120]
[354387591,1740468742769,-500.0,0.00056712,120]
[354387592,1740468742779,-500.0,0.00056712,120]
[354387593,1740468742789,-500.0,0.00056712,120]
[354387594,1740468742799,-500.0,0.00056712,120]
[354387595,1740468742808,-687.3,0.00056712,120]
[354387596,1740468742820,-500.0,0.00056712,120]
[354387597,1740468742830,-500.0,0.00056712,120]
[354387598,1740468742840,-1291.42,0.00056712,120]
[354387599,1740468742850,-500.0,0.00056712,120]
[354387600,1740468742860,-500.0,0.00056712,120]
[354387601,1740468742870,-500.0,0.00056712,120]
[354387602,1740468742879,-212.61083356,0.00056712,120]
[354387603,1740468742889,-500.0,0.00056712,120]
[354387604,1740468742899,-500.0,0.00056712,120]
[354387605,1740468742909,-850.45,0.00056712,120]
[354387606,1740468742919,-500.0,0.00056712,120]